[Event "FIDE World Cup O10-A 2024"]
[Site "Batumi"]
[Date "2024.06.26"]
[Round "4.7"]
[White "Obado, Sean Adrich"]
[Black "Hummatov, Safa"]
[Result "0-1"]
[ECO "B22"]
[WhiteElo "1631"]
[BlackElo "1693"]
[Annotator "NA RC"]
[PlyCount "144"]
[EventDate "2024.06.23"]
[EventType "swiss"]
[EventCountry "GEO"]
[SourceTitle "playchess.com"]
[Source "ChessBase"]
[SourceQuality "1"]
[TimeControl "5400+30"]

1. e4 {[%emt 0:00:01]} c5 {[%emt 0:00:18]} 2. c3 {[%emt 0:00:08]} Nf6 {[%emt 0:00:06]} 3. e5 {[%emt 0:00:06]} Nd5 {[%emt 0:00:15]} 4. d4 {[%emt 0:00:34]} cxd4 {[%emt 0:00:04]} 5. Nf3 {[%emt 0:00:06]} d6 {[%emt 0:00:05]} 6. exd6 {[%emt 0:00:12]} Qxd6 {[%emt 0:00:32]} 7. Nxd4 {[%emt 0:02:20]} a6 {[%emt 0:03:19]} 8. Be2 {[%emt 0:07:04]} g6 {[%emt 0:03:11]} 9. O-O {[%emt 0:01:58]} Bg7 {[%emt 0:06:07]} 10. Nd2 {[%emt 0:01:53]} O-O {[%emt 0:01:07]} 11. Ne4 {[%emt 0:02:49]} Qc7 {[%emt 0:10:20]} 12. Re1 {[%emt 0:02:00]} Rd8 {[%emt 0:05:01]} 13. Qb3 {[%emt 0:07:57]} Nc6 {[%emt 0:17:25]} 14. Nxc6 {[%emt 0:00:40]} Qxc6 {[%emt 0:00:37]} 15. Bf3 {[%emt 0:05:47]} b5 {[%emt 0:11:58]} 16. Bg5 {[%emt 0:10:19]} Be6 {[%emt 0:05:02]} 17. Qc2 {[%emt 0:08:05]} Qc7 {[%emt 0:01:50]} 18. Qe2 {[%emt 0:10:04]} Rac8 {[%emt 0:02:48]} 19. a4 {[%emt 0:14:24]} Nb6 {[%emt 0:05:15]} 20. axb5 {[%emt 0:07:33]} Bc4 {[%emt 0:00:43]} 21. Qc2 {[%emt 0:04:36]} axb5 {[%emt 0:01:02]} 22. Nd2 {[%emt 0:01:32]} Be6 {[%emt 0:04:12]} 23. Ne4 {[%emt 0:03:54]} b4 {[%emt 0:03:59]} 24. h3 {[%emt 0:02:17]} Nd5 {[%emt 0:02:55]} 25. Rac1 {[%emt 0:02:23]} bxc3 {[%emt 0:01:30]} 26. bxc3 {[%emt 0:00:13]} Bf5 {[%emt 0:01:14]} 27. Qe2 {[%emt 0:03:11]} h6 {[%emt 0:01:29]} 28. Bd2 {[%emt 0:00:58]} Nf4 {[%emt 0:00:21]} 29. Bxf4 {[%emt 0:00:22]} Qxf4 {[%emt 0:00:03]} 30. c4 {[%emt 0:01:05]} Rd4 {[%emt 0:01:24]} 31. c5 {[%emt 0:00:46]} h5 {[%emt 0:04:23]} 32. Rc4 {[%emt 0:00:30]} Rxc4 {[%emt 0:01:18]} 33. Qxc4 {[%emt 0:00:03]} Bxh3 {[%emt 0:00:37]} 34. Qc1 {[%emt 0:01:00]} Qxc1 {[%emt 0:01:04]} 35. Rxc1 {[%emt 0:00:04]} Bd7 {[%emt 0:00:27]} 36. Kf1 {[%emt 0:00:52]} Bc6 {[%emt 0:00:20]} 37. Ng3 {[%emt 0:00:38]} Bd4 {[%emt 0:01:50]} 38. Ne2 {[%emt 0:00:28]} Bb2 {[%emt 0:01:13]} 39. Rc2 {[%emt 0:00:12]} Ba3 {[%emt 0:00:50]} 40. Bxc6 {[%emt 0:00:49]} Rxc6 {[%emt 0:00:04]} 41. Nf4 {[%emt 0:00:21]} Rxc5 {[%emt 0:00:16]} 42. Rxc5 {[%emt 0:00:06]} Bxc5 {[%emt 0:00:08]} 43. Ke2 {[%emt 0:00:22]} Kg7 {[%emt 0:00:19]} 44. Nd3 {[%emt 0:00:34]} Bd6 {[%emt 0:00:04]} 45. f4 {[%emt 0:00:20]} Kf6 {[%emt 0:00:05]} 46. Kf3 {[%emt 0:00:19]} Kf5 {[%emt 0:00:08]} 47. g3 {[%emt 0:00:16]} e6 {[%emt 0:00:14]} 48. Ne1 {[%emt 0:00:17]} g5 {[%emt 0:01:57]} 49. fxg5 {[%emt 0:00:18]} Kxg5 {[%emt 0:00:08]} 50. Nc2 {[%emt 0:00:40]} Bc5 {[%emt 0:00:40]} 51. Ne1 {[%emt 0:00:10]} f5 {[%emt 0:00:22]} 52. Nd3 {[%emt 0:00:32]} Bd4 {[%emt 0:00:27]} 53. Nf4 {[%emt 0:00:26]} e5 {[%emt 0:00:15]} 54. Ne6+ {[%emt 0:00:44]} Kf6 {[%emt 0:00:08]} 55. Nf8 {[%emt 0:00:17]} e4+ {[%emt 0:00:18]} 56. Ke2 {[%emt 0:00:53]} Be5 {[%emt 0:00:20]} 57. Nd7+ {[%emt 0:01:51]} Ke6 {[%emt 0:00:08]} 58. Nf8+ {[%emt 0:00:15]} Kf7 {[%emt 0:00:10]} 59. Nh7 {[%emt 0:00:46]} Bf6 {[%emt 0:00:25]} 60. Ke3 {[%emt 0:00:29]} Kg7 {[%emt 0:00:12]} 61. Nxf6 {[%emt 0:00:12]} Kxf6 {[%emt 0:00:05]} 62. Kf4 {[%emt 0:00:02]} Ke6 {[%emt 0:00:08]} 63. Ke3 {[%emt 0:00:22]} Ke5 {[%emt 0:00:02]} 64. Ke2 {[%emt 0:00:13]} Kd4 {[%emt 0:00:05]} 65. Kd2 {[%emt 0:00:08]} e3+ {[%emt 0:00:06]} 66. Ke2 {[%emt 0:00:18]} Ke4 {[%emt 0:00:04]} 67. Ke1 {[%emt 0:00:10]} Kf3 {[%emt 0:00:11]} 68. g4 {[%emt 0:00:05]} hxg4 {[%emt 0:00:07]} 69. Kf1 {[%emt 0:00:04]} g3 {[%emt 0:00:08]} 70. Ke1 {[%emt 0:00:03]} g2 {[%emt 0:00:06]} 71. Kd1 {[%emt 0:00:03]} g1=Q+ {[%emt 0:00:05]} 72. Kc2 {[%emt 0:00:04]} e2 {[%emt 0:00:08]} 0-1

[Event "FIDE World Cup O10-A 2024"]
[Site "Batumi"]
[Date "2024.06.26"]
[Round "4.8"]
[White "Kiladze, Giorgi"]
[Black "Tsulaia, Giorgi"]
[Result "0-1"]
[ECO "B22"]
[WhiteElo "1552"]
[BlackElo "1646"]
[Annotator "NA RC"]
[PlyCount "60"]
[EventDate "2024.06.23"]
[EventType "swiss"]
[EventCountry "GEO"]
[SourceTitle "playchess.com"]
[Source "ChessBase"]
[SourceQuality "1"]
[TimeControl "5400+30"]

1. e4 {[%emt 0:00:02]} c5 {[%emt 0:00:15]} 2. Nf3 {[%emt 0:00:03]} e6 {[%emt 0:00:09]} 3. c3 {[%emt 0:00:03]} Nf6 {[%emt 0:02:35]} 4. e5 {[%emt 0:00:38]} Nd5 {[%emt 0:00:10]} 5. d4 {[%emt 0:00:26]} cxd4 {[%emt 0:00:05]} 6. cxd4 {[%emt 0:00:07]} Nc6 {[%emt 0:01:33]} 7. Nc3 {[%emt 0:01:41]} Nxc3 {[%emt 0:00:07]} 8. bxc3 {[%emt 0:00:05]} d6 {[%emt 0:00:30]} 9. Bb5 {[%emt 0:05:46]} Bd7 {[%emt 0:09:40]} 10. Bg5 {[%emt 0:15:12]} Be7 {[%emt 0:02:33]} 11. Bxe7 {[%emt 0:00:20]} Qxe7 {[%emt 0:00:10]} 12. exd6 {[%emt 0:00:51]} Qxd6 {[%emt 0:00:23]} 13. O-O {[%emt 0:00:33]} O-O {[%emt 0:00:44]} 14. Bd3 {[%emt 0:04:34]} h6 {[%emt 0:04:25]} 15. Qc2 {[%emt 0:01:02]} Rac8 {[%emt 0:01:56]} 16. Rab1 {[%emt 0:01:25]} b6 {[%emt 1:13:15]} 17. Rfd1 {[%emt 0:03:21]} Kh8 {[%emt 0:00:00]} 18. Rd2 {[%emt 0:04:28]} Rfd8 {[%emt 0:00:00]} 19. Qb2 {[%emt 0:02:15]} Kg8 {[%emt 0:00:00]} 20. Rbd1 {[%emt 0:01:13]} Na5 {[%emt 0:00:00]} 21. Rc1 {[%emt 0:17:10]} Qe7 {[%emt 0:00:00]} 22. c4 {[%emt 0:01:40]} Bc6 {[%emt 0:00:00]} 23. Be2 {[%emt 0:07:34]} Bxf3 {[%emt 0:00:00]} 24. gxf3 {[%emt 0:01:56]} Qf6 {[%emt 0:00:00]} 25. c5 {[%emt 0:05:23]} bxc5 {[%emt 0:00:00]} 26. dxc5 {[%emt 0:01:15]} Qg5+ {[%emt 0:00:00]} 27. Kh1 {[%emt 0:01:33]} Qxd2 {[%emt 0:00:00]} 28. Rc2 {[%emt 0:00:33]} Qg5 {[%emt 0:00:00]} 29. Rc1 {[%emt 0:00:28]} Rxc5 {[%emt 0:00:00]} 30. Rg1 {[%emt 0:01:14]} Qe5 {[%emt 0:00:00]} 0-1

[Event "FIDE World Cup O10-A 2024"]
[Site "Batumi"]
[Date "2024.06.26"]
[Round "4.9"]
[White "Wee, Yu Xi Lyndon"]
[Black "Kalinichenko, German Yu"]
[Result "0-1"]
[ECO "C55"]
[WhiteElo "1408"]
[BlackElo "1634"]
[Annotator "NA RC"]
[PlyCount "88"]
[EventDate "2024.06.23"]
[EventType "swiss"]
[EventCountry "GEO"]
[SourceTitle "playchess.com"]
[Source "ChessBase"]
[SourceQuality "1"]
[TimeControl "5400+30"]

1. e4 {[%emt 0:00:04]} e5 {[%emt 0:00:10]} 2. Nf3 {[%emt 0:00:20]} Nc6 {[%emt 0:00:34]} 3. Bc4 {[%emt 0:00:09]} Nf6 {[%emt 0:00:11]} 4. d3 {[%emt 0:00:22]} h6 {[%emt 0:00:06]} 5. c3 {[%emt 0:00:09]} d6 {[%emt 0:00:04]} 6. h3 {[%emt 0:00:19]} g5 {[%emt 0:00:09]} 7. Nxg5 {[%emt 0:01:26]} hxg5 {[%emt 0:00:22]} 8. Bxg5 {[%emt 0:00:07]} Be7 {[%emt 0:00:24]} 9. Qf3 {[%emt 0:00:38]} Be6 {[%emt 0:00:15]} 10. Bb5 {[%emt 0:02:22]} Nd7 {[%emt 0:01:33]} 11. Bxe7 {[%emt 1:30:04]} Nxe7 {[%emt 0:02:01]} 12. O-O {[%emt 0:00:00]} c6 {[%emt 0:00:45]} 13. Ba4 {[%emt 0:00:00]} Qa5 {[%emt 0:00:16]} 14. Qd1 {[%emt 0:00:00]} O-O-O {[%emt 0:00:32]} 15. Bb3 {[%emt 0:00:00]} Rdg8 {[%emt 0:00:33]} 16. Bxe6 {[%emt 0:00:00]} fxe6 {[%emt 0:00:10]} 17. Qf3 {[%emt 0:00:00]} Ng6 {[%emt 0:00:30]} 18. Nd2 {[%emt 0:00:00]} Nf4 {[%emt 0:00:31]} 19. Kh1 {[%emt 0:00:00]} Rxg2 {[%emt 0:00:30]} 20. Qxg2 {[%emt 0:00:00]} Nxg2 {[%emt 0:00:12]} 21. Kxg2 {[%emt 0:00:00]} Qd8 {[%emt 0:00:28]} 22. Nf3 {[%emt 0:00:00]} Nf8 {[%emt 0:00:23]} 23. Kh2 {[%emt 0:00:00]} Ng6 {[%emt 0:00:04]} 24. Rg1 {[%emt 0:00:00]} Nf4 {[%emt 0:00:07]} 25. Rg3 {[%emt 0:00:00]} Qf6 {[%emt 0:00:30]} 26. Ng5 {[%emt 0:00:00]} Rg8 {[%emt 1:32:10]} 27. Rag1 {[%emt 0:00:00]} Ne2 {[%emt 0:00:00]} 28. Rf3 {[%emt 0:00:00]} Qe7 {[%emt 0:00:00]} 29. Rf7 {[%emt 0:00:00]} Qxf7 {[%emt 0:00:00]} 30. Nxf7 {[%emt 0:00:00]} Rxg1 {[%emt 0:00:00]} 31. Nxd6+ {[%emt 0:00:00]} Kc7 {[%emt 0:00:00]} 32. Ne8+ {[%emt 0:00:00]} Kd7 {[%emt 0:00:00]} 33. Nf6+ {[%emt 0:00:00]} Ke7 {[%emt 0:00:00]} 34. Ng4 {[%emt 0:00:00]} Ra1 {[%emt 0:00:00]} 35. Nxe5 {[%emt 0:00:00]} Rxa2 {[%emt 0:00:00]} 36. Nc4 {[%emt 0:00:00]} Nc1 {[%emt 0:00:00]} 37. d4 {[%emt 0:00:00]} Nd3 {[%emt 0:00:00]} 38. h4 {[%emt 0:00:00]} Nxb2 {[%emt 0:00:00]} 39. Nxb2 {[%emt 0:00:00]} Rxb2 {[%emt 0:00:00]} 40. Kg2 {[%emt 0:00:00]} a5 {[%emt 0:00:00]} 41. h5 {[%emt 0:00:00]} a4 {[%emt 0:00:00]} 42. h6 {[%emt 0:00:00]} Kf7 {[%emt 0:00:00]} 43. c4 {[%emt 0:00:00]} a3 {[%emt 0:00:00]} 44. h7 {[%emt 0:00:00]} Kg7 {[%emt 0:00:00]} 0-1

[Event "FIDE World Cup O10-A 2024"]
[Site "Batumi"]
[Date "2024.06.26"]
[Round "4.10"]
[White "Macosay Lopez, Julio David"]
[Black "Eshkol, Idan"]
[Result "0-1"]
[ECO "C47"]
[WhiteElo "1607"]
[BlackElo "1544"]
[Annotator "NA RC"]
[PlyCount "82"]
[EventDate "2024.06.23"]
[EventType "swiss"]
[EventCountry "GEO"]
[SourceTitle "playchess.com"]
[Source "ChessBase"]
[SourceQuality "1"]
[TimeControl "5400+30"]

1. e4 {[%emt 0:00:12]} e5 {[%emt 0:00:04]} 2. Nf3 {[%emt 0:00:09]} Nc6 {[%emt 0:00:06]} 3. Nc3 {[%emt 0:00:04]} Nf6 {[%emt 1:31:50]} 4. h3 {[%emt 0:00:46]} Bb4 {[%emt 0:00:00]} 5. Nd5 {[%emt 0:00:13]} Bc5 {[%emt 0:00:00]} 6. c3 {[%emt 0:01:03]} d6 {[%emt 0:00:00]} 7. d4 {[%emt 0:00:39]} exd4 {[%emt 0:00:00]} 8. cxd4 {[%emt 0:00:13]} Bb6 {[%emt 0:00:00]} 9. Nxb6 {[%emt 0:00:25]} axb6 {[%emt 0:00:00]} 10. d5 {[%emt 0:00:34]} Ne5 {[%emt 0:00:00]} 11. Nxe5 {[%emt 0:00:13]} dxe5 {[%emt 0:04:00]} 12. Qc2 {[%emt 0:01:23]} Qd6 {[%emt 0:00:00]} 13. Bd2 {[%emt 0:03:36]} Bd7 {[%emt 0:00:00]} 14. Be2 {[%emt 1:28:00]} O-O {[%emt 0:00:00]} 15. a3 {[%emt 0:00:30]} Ra4 {[%emt 0:02:00]} 16. f3 {[%emt 0:00:00]} Rfa8 {[%emt 0:00:00]} 17. O-O {[%emt 0:01:00]} c6 {[%emt 0:00:00]} 18. dxc6 {[%emt 0:00:00]} bxc6 {[%emt 0:00:00]} 19. Rfd1 {[%emt 0:00:00]} Qd4+ {[%emt 0:00:00]} 20. Kf1 {[%emt 0:00:00]} Qd6 {[%emt 0:00:00]} 21. Ba5 {[%emt 0:00:00]} Rd4 {[%emt 0:00:00]} 22. Bxb6 {[%emt 0:00:00]} Rxd1+ {[%emt 0:00:00]} 23. Rxd1 {[%emt 0:00:00]} Qb8 {[%emt 0:00:00]} 24. Bc5 {[%emt 0:00:00]} Qc8 {[%emt 0:00:00]} 25. Bc4 {[%emt 0:00:00]} Nh5 {[%emt 0:00:00]} 26. Qb3 {[%emt 0:00:00]} Nf4 {[%emt 0:00:00]} 27. Bxf7+ {[%emt 0:00:00]} Kh8 {[%emt 0:00:00]} 28. g4 {[%emt 0:00:00]} Nxh3 {[%emt 0:00:00]} 29. Ke2 {[%emt 0:00:00]} Qd8 {[%emt 0:00:00]} 30. Be3 {[%emt 0:00:00]} Qc8 {[%emt 0:00:00]} 31. Kd2 {[%emt 0:00:00]} c5 {[%emt 0:00:00]} 32. Qd5 {[%emt 0:00:00]} c4 {[%emt 0:00:00]} 33. Qxc4 {[%emt 0:00:00]} Qd8 {[%emt 0:00:00]} 34. Ke2 {[%emt 0:00:00]} Rb8 {[%emt 0:00:00]} 35. Be6 {[%emt 0:00:00]} Rxb2+ {[%emt 0:00:00]} 36. Kf1 {[%emt 0:00:00]} Qh4 {[%emt 0:00:00]} 37. Qc5 {[%emt 0:00:00]} Bb5+ {[%emt 0:00:00]} 38. Qxb5 {[%emt 0:00:00]} Rxb5 {[%emt 0:00:00]} 39. g5 {[%emt 0:00:00]} Rb8 {[%emt 0:00:00]} 40. Kg2 {[%emt 0:00:00]} Rb2+ {[%emt 0:00:00]} 41. Kh1 {[%emt 0:00:00]} Nf2+ {[%emt 0:00:00]} 0-1

[Event "FIDE World Cup O10-A 2024"]
[Site "Batumi"]
[Date "2024.06.26"]
[Round "4.11"]
[White "Chkhartishvili, Lazare"]
[Black "Dien James"]
[Result "1-0"]
[ECO "B01"]
[WhiteElo "1608"]
[BlackElo "1419"]
[Annotator "NA RC"]
[PlyCount "89"]
[EventDate "2024.06.23"]
[EventType "swiss"]
[EventCountry "GEO"]
[SourceTitle "playchess.com"]
[Source "ChessBase"]
[SourceQuality "1"]
[TimeControl "5400+30"]

1. e4 {[%emt 0:00:02]} d5 {[%emt 0:00:06]} 2. exd5 {[%emt 0:00:04]} Nf6 {[%emt 0:00:13]} 3. Bb5+ {[%emt 0:00:14]} Bd7 {[%emt 0:00:48]} 4. Be2 {[%emt 0:00:12]} Bf5 {[%emt 0:00:17]} 5. Nf3 {[%emt 0:01:50]} Qxd5 {[%emt 0:00:29]} 6. Nc3 {[%emt 0:00:25]} Qc6 {[%emt 0:00:31]} 7. Bb5 {[%emt 0:00:20]} e6 {[%emt 0:00:44]} 8. O-O {[%emt 0:00:25]} Bc5 {[%emt 0:00:13]} 9. Bxc6+ {[%emt 0:00:07]} Nxc6 {[%emt 1:31:39]} 10. d4 {[%emt 0:00:18]} Nxd4 {[%emt 0:00:00]} 11. Nxd4 {[%emt 0:00:29]} O-O-O {[%emt 0:00:00]} 12. Be3 {[%emt 0:00:56]} Bxd4 {[%emt 0:00:00]} 13. Bxd4 {[%emt 0:00:14]} e5 {[%emt 0:00:00]} 14. Bxe5 {[%emt 0:00:30]} Rxd1 {[%emt 0:00:00]} 15. Raxd1 {[%emt 0:00:07]} Bxc2 {[%emt 0:00:00]} 16. Rd2 {[%emt 0:00:13]} Bf5 {[%emt 0:00:00]} 17. Bxf6 {[%emt 0:00:29]} gxf6 {[%emt 0:00:00]} 18. Re1 {[%emt 0:00:09]} Rg8 {[%emt 0:00:00]} 19. f3 {[%emt 0:00:11]} Be6 {[%emt 0:00:00]} 20. b3 {[%emt 0:00:27]} f5 {[%emt 0:00:00]} 21. Nd5 {[%emt 0:01:12]} Re8 {[%emt 0:00:00]} 22. Nf4 {[%emt 0:00:05]} Bd7 {[%emt 0:00:00]} 23. Rxe8+ {[%emt 0:00:12]} Bxe8 {[%emt 0:00:00]} 24. Nh5 {[%emt 0:00:05]} Bc6 {[%emt 0:00:00]} 25. Nf6 {[%emt 0:00:19]} h6 {[%emt 0:00:00]} 26. Ng8 {[%emt 0:00:20]} h5 {[%emt 0:00:00]} 27. Nf6 {[%emt 0:00:13]} h4 {[%emt 0:00:00]} 28. Kf2 {[%emt 0:00:08]} b5 {[%emt 0:00:00]} 29. Rd4 {[%emt 0:00:16]} Kb7 {[%emt 0:00:00]} 30. Rxh4 {[%emt 0:00:14]} a5 {[%emt 0:00:00]} 31. Rd4 {[%emt 0:00:08]} Kb6 {[%emt 0:00:00]} 32. Nd7+ {[%emt 0:00:06]} Bxd7 {[%emt 0:00:00]} 33. Rxd7 {[%emt 0:00:03]} c5 {[%emt 0:00:00]} 34. h4 {[%emt 0:00:04]} c4 {[%emt 0:00:00]} 35. bxc4 {[%emt 0:00:02]} bxc4 {[%emt 0:00:00]} 36. h5 {[%emt 0:00:04]} c3 {[%emt 0:00:00]} 37. Ke2 {[%emt 0:00:02]} a4 {[%emt 0:00:00]} 38. h6 {[%emt 0:00:04]} Kb5 {[%emt 0:00:00]} 39. h7 {[%emt 0:00:07]} Kb4 {[%emt 0:00:00]} 40. h8=Q {[%emt 0:00:05]} c2 {[%emt 0:00:00]} 41. Qb2+ {[%emt 0:00:08]} Kc4 {[%emt 0:00:00]} 42. Qxc2+ {[%emt 0:00:08]} Kb4 {[%emt 0:00:00]} 43. Rb7+ {[%emt 0:00:04]} Ka5 {[%emt 0:00:00]} 44. Qc5+ {[%emt 0:00:03]} Ka6 {[%emt 0:00:00]} 45. Qb5# {[%emt 0:00:03]} 1-0